bitfinex-derivatives/quotes_ETHF0:USTF0_20250702
["timestamp","ask_amount","ask_price","bid_price","bid_amount"]
[1751457400396,26.4104,2445.1,2445.0,2.88521]
[1751457400993,12.2393,2445.2,2445.1,0.81777]
[1751457401194,11.567,2445.2,2445.1,0.81777]
[1751457401395,11.567,2445.2,2445.1,2.22307]
[1751457401595,0.683,2445.4,2445.3,0.81771]
[1751457401795,25.57,2445.4,2445.3,3.1727766]
[1751457402294,26.38767,2445.4,2445.3,3.1727766]
[1751457402697,1.51127,2445.5,2445.4,0.81767]
[1751457402895,26.39627,2445.5,2445.4,1.47977]
[1751457403399,0.683,2445.6,2445.4,3.0171666]
[1751457403694,24.885,2445.5,2445.4,3.8348066]
[1751457404099,25.70264,2445.5,2445.4,3.8348066]
[1751457404301,24.885,2445.5,2445.4,3.8348066]
[1751457404702,0.683,2445.6,2445.5,0.81764]
[1751457405001,26.3836,2445.6,2445.5,0.81764]
[1751457406695,11.565,2445.8,2445.4,5.0613466]
[1751457406901,37.26557,2445.8,2445.7,3.1726366]
[1751457407296,37.26557,2445.8,2445.7,43.9726366]
[1751457407600,11.565,2445.8,2445.7,43.9726366]
[1751457407899,36.445,2445.8,2445.7,43.9726366]
[1751457408101,37.26254,2445.8,2445.7,43.9726366]
[1751457408298,36.445,2445.8,2445.7,3.1726366]
[1751457408494,37.26254,2445.8,2445.7,3.1726366]
[1751457408691,37.26254,2445.8,2445.7,43.9726366]
[1751457409100,36.445,2445.8,2445.7,43.9726366]
[1751457409501,37.26254,2445.8,2445.7,43.9726366]
[1751457413204,37.26254,2445.8,2445.7,3.1726366]
[1751457413803,37.26254,2445.8,2445.7,43.9726366]
[1751457414296,36.445,2445.8,2445.7,43.9726366]
[1751457414500,37.26254,2445.8,2445.7,43.9726366]
[1751457414698,37.26254,2445.8,2445.7,43.1550666]
[1751457414996,0.81754,2445.8,2445.7,43.1550666]
[1751457415199,25.69454,2445.8,2445.7,43.9726366]
[1751457415700,25.69454,2445.8,2445.7,41.61757]
[1751457415894,25.69454,2445.8,2445.7,43.9726366]
[1751457416602,29.2759966,2445.8,2445.4,0.6621]
[1751457416803,0.81767,2445.5,2445.4,0.81763]
[1751457417002,25.69267,2445.5,2445.4,0.81763]
[1751457417298,25.69267,2445.5,2445.4,41.61763]
[1751457418700,25.69267,2445.5,2445.4,40.8]
[1751457419599,25.69267,2445.5,2445.4,41.61767]
[1751457419797,25.69267,2445.5,2445.4,40.8]
[1751457419995,25.69267,2445.5,2445.4,41.61767]
[1751457420197,25.69267,2445.5,2445.4,40.8]
[1751457420395,25.69267,2445.5,2445.4,41.61767]
[1751457420596,25.69267,2445.5,2445.4,40.8]
[1751457421607,25.69267,2445.5,2445.4,41.61767]
[1751457425007,25.69267,2445.5,2445.4,43.9727366]
[1751457430411,25.69267,2445.5,2445.4,41.61767]
[1751457430710,25.69267,2445.5,2445.4,43.9727366]
[1751457433314,0.81767,2445.5,2445.4,43.9727366]
[1751457433614,25.69167,2445.5,2445.4,43.9727366]
[1751457433914,5.902,2445.8,2445.6,0.81757]
[1751457434110,25.69161,2445.7,2445.6,0.81757]
[1751457434314,25.69161,2445.7,2445.6,3.1726366]
[1751457435116,17.463,2445.8,2445.7,0.81757]
[1751457435314,42.337,2445.8,2445.7,0.81757]
[1751457435515,17.463,2445.8,2445.7,2.21057]
[1751457435714,42.336,2445.8,2445.7,2.21057]
[1751457437518,43.15354,2445.8,2445.7,2.21057]
[1751457437715,1.48513,2445.9,2445.8,0.81754]
[1751457438017,37.91813,2445.9,2445.8,3.1726066]
[1751457439918,13.04613,2445.9,2445.8,3.1726066]
[1751457440113,37.91813,2445.9,2445.8,3.1726066]
[1751457447323,0.81753,2445.9,2445.8,3.1726066]
[1751457447624,25.68653,2445.9,2445.8,3.1726066]
[1751457449325,25.68653,2445.9,2445.8,3.8817066]
[1751457449520,13.05349,2446.0,2445.9,0.81751]
[1751457449725,37.104,2446.0,2445.9,0.81751]
[1751457450524,13.05347,2446.0,2445.9,0.81751]
[1751457450726,37.92147,2446.0,2445.9,0.81751]
[1751457461033,0.81751,2445.9,2445.8,3.8816766]
[1751457464932,0.81751,2445.9,2445.8,1.52661]
[1751457467242,0.81771,2445.4,2445.3,0.81767]
[1751457467442,0.81774,2445.3,2445.2,0.81771]
[1751457467637,1.54024,2445.3,2445.2,0.81771]
[1751457467840,1.54024,2445.3,2445.2,41.61771]
[1751457469345,0.7225,2445.3,2445.2,41.61771]
[1751457470939,1.54021,2445.3,2445.2,41.61771]
[1751457471444,0.7225,2445.3,2445.2,41.61771]
[1751457472150,1.54021,2445.3,2445.2,41.61771]
[1751457472446,0.7225,2445.3,2445.2,41.61771]
[1751457473147,1.54021,2445.3,2445.2,41.61771]
[1751457473445,0.7225,2445.3,2445.2,41.61771]
[1751457475350,25.5635,2445.4,2445.3,0.81771]
[1751457475550,25.5635,2445.4,2445.3,3.1727766]
[1751457475746,25.5635,2445.4,2445.3,3.8521766]
[1751457476049,26.38117,2445.4,2445.3,3.8521766]
[1751457476249,25.5635,2445.4,2445.3,3.8521766]
[1751457476447,26.38117,2445.4,2445.3,3.8521766]
[1751457477556,25.5495,2445.5,2445.4,0.81767]
[1751457477749,0.6885,2445.5,2445.4,2.16337]
[1751457477951,25.5495,2445.5,2445.4,2.16337]
[1751457478653,0.6938,2445.8,2445.4,1.3457]
[1751457478854,24.861,2445.6,2445.5,0.81764]
[1751457479753,0.6975,2445.7,2445.6,0.81761]
[1751457479949,11.558,2445.8,2445.6,3.1726766]
[1751457480151,26.40429,2446.0,2445.9,0.81751]
[1751457480456,26.40429,2446.0,2445.9,3.1725766]
[1751457490056,0.7268,2446.0,2445.9,3.1725766]
[1751457490360,13.06146,2446.1,2446.0,0.81747]
[1751457490659,37.91546,2446.1,2446.0,0.81747]
[1751457490859,37.91546,2446.1,2446.0,1.50777]
[1751457491060,37.91546,2446.1,2446.0,3.8628366]
[1751457493261,13.06144,2446.1,2446.0,3.8628366]
[1751457493461,37.91444,2446.1,2446.0,3.8628366]
[1751457494960,37.91444,2446.1,2446.0,1.50777]
[1751457495462,0.81747,2446.0,2445.9,3.1725366]
[1751457503069,2.04379,2445.9,2445.0,2.04448]
[1751457503269,0.81771,2445.4,2445.3,0.81767]
[1751457503566,24.68861,2445.4,2445.3,0.81767]
[1751457504169,0.81771,2445.3,2445.2,43.9727866]
[1751457504468,0.81771,2445.3,2445.2,3.1727866]
[1751457507866,0.81771,2445.3,2445.2,2.3550666]
[1751457508171,27.41084,2445.4,2445.0,3.1728566]
[1751457508372,0.81777,2445.1,2445.0,44.6804566]
[1751457513380,0.81777,2445.1,2445.0,3.8804566]
[1751457513574,0.81777,2445.1,2445.0,3.0626666]
[1751457513872,0.81777,2445.1,2445.0,3.8804766]
[1751457518278,0.81777,2445.1,2445.0,5.3049766]
[1751457523280,0.81775,2445.3,2445.2,0.81771]
[1751457523479,0.81775,2445.3,2445.2,3.1727766]
[1751457523679,0.81775,2445.3,2445.2,4.5173766]
[1751457525282,1.52485,2445.3,2445.2,4.5173766]
[1751457525682,0.81775,2445.3,2445.2,4.5173766]
[1751457531785,0.81775,2445.3,2445.2,3.1727766]
[1751457535392,0.81775,2445.3,2445.2,2.3550666]
[1751457536191,0.81775,2445.3,2445.2,3.1728066]
[1751457541796,0.81775,2445.3,2445.2,2.46526757]
[1751457541990,0.81775,2445.3,2445.2,0.81774]
[1751457542295,0.81775,2445.3,2445.2,2.46526757]
[1751457545186,0.81775,2445.3,2445.2,0.81774]
[1751457545997,0.81774,2445.2,2445.1,2.46527757]
[1751457546197,25.65574,2445.2,2445.1,2.46527757]
[1751457547401,0.81777,2445.1,2445.0,2.86338]
[1751457547698,0.81777,2445.1,2445.0,4.51090757]
[1751457547896,1.53177,2445.1,2445.0,4.51090757]
[1751457552008,0.81777,2445.1,2445.0,4.51090757]
[1751457557010,25.65577,2445.2,2445.1,0.81777]
[1751457557212,25.65577,2445.2,2445.1,2.18837]
[1751457562209,7.94611,2445.5,2445.3,0.81769]
[1751457562406,25.64767,2445.4,2445.3,0.81769]
[1751457562604,25.64767,2445.4,2445.3,2.46521757]
[1751457563210,25.64767,2445.4,2445.3,3.88351757]
[1751457563810,25.64767,2445.4,2445.3,4.58943072]
[1751457564005,7.42075,2445.5,2445.4,0.81767]
[1751457564304,32.25075,2445.5,2445.4,2.23597]
[1751457565014,31.54965,2445.5,2445.4,2.23597]
[1751457567919,25.64765,2445.5,2445.4,2.23597]
[1751457568418,25.64765,2445.5,2445.4,0.81767]
[1751457568820,0.81767,2445.4,2445.3,3.17112072]
[1751457570618,0.81767,2445.4,2445.3,0.81768]
[1751457576222,0.81767,2445.4,2445.3,3.17112072]
[1751457577216,1.358,2445.6,2445.3,3.17112072]
[1751457577423,37.18366,2445.5,2445.4,0.81764]
[1751457585731,37.18366,2445.5,2445.4,2.46520742]
[1751457596041,0.81766,2445.5,2445.4,2.46520742]
[1751457596234,25.63166,2445.5,2445.4,2.46520742]
[1751457596732,25.63066,2445.5,2445.4,2.46520742]
[1751457597036,0.81766,2445.5,2445.4,2.46520742]
[1751457597236,25.63066,2445.5,2445.4,2.46520742]
[1751457599636,25.63066,2445.5,2445.2,2.35956742]
[1751457599842,0.81771,2445.4,2445.3,0.81771]
[1751457600239,0.81771,2445.3,2445.1,1.64756742]
[1751457600434,24.811,2445.2,2445.1,2.46534742]
[1751457601043,24.811,2445.2,2445.1,3.90824742]
[1751457602245,25.62874,2445.2,2445.1,3.90824742]
[1751457602847,24.811,2445.2,2445.1,3.90824742]
[1751457603147,0.81774,2445.3,2445.2,0.81774]
[1751457603347,25.62874,2445.3,2445.2,2.89974]
[1751457603647,25.62771,2445.3,2445.2,2.89974]
[1751457603844,26.32671,2445.3,2445.2,2.89974]
[1751457605445,25.509,2445.3,2445.2,2.89974]
[1751457605645,24.81,2445.3,2445.2,2.89974]
[1751457605946,12.35367,2445.5,2445.4,0.81768]
[1751457606146,37.16367,2445.5,2445.4,2.46524742]
[1751457606349,37.16367,2445.5,2445.4,0.81768]
[1751457606645,37.16367,2445.5,2445.4,2.46524742]
[1751457606845,25.62667,2445.5,2445.4,2.46524742]
[1751457609344,25.62667,2445.5,2445.4,1.64756742]
[1751457609947,0.81768,2445.4,2445.3,0.81768]
[1751457610148,1.50728,2445.4,2445.3,0.81768]
[1751457610742,26.31528,2445.4,2445.3,0.81768]
[1751457615448,25.62568,2445.4,2445.3,0.81768]
[1751457615843,24.808,2445.4,2445.3,3.1716345]
[1751457617051,0.6743,2445.6,2445.3,2.3539545]
[1751457617246,0.6743,2445.6,2445.5,3.1715945]
[1751457617549,25.4783,2445.6,2445.5,3.1715945]
[1751457618646,25.4783,2445.6,2445.5,0.81764]
[1751457620049,26.29591,2445.6,2445.5,0.81764]
[1751457620852,27.68721,2445.6,2445.5,0.81764]
[1751457622051,0.81771,2445.4,2445.3,0.81768]
[1751457622245,25.61971,2445.4,2445.3,0.81768]
[1751457622446,24.802,2445.4,2445.3,3.1716345]
[1751457624748,25.61968,2445.4,2445.3,3.1716345]
[1751457624953,25.61968,2445.4,2445.3,0.81768]
[1751457625749,24.802,2445.4,2445.3,0.81768]
[1751457625946,25.61968,2445.4,2445.3,0.81768]
[1751457627656,24.802,2445.4,2445.3,0.81768]
[1751457628057,25.4759,2445.4,2445.3,0.81768]
[1751457628258,26.29358,2445.4,2445.3,0.81768]
[1751457628556,25.4759,2445.4,2445.3,0.81768]
[1751457628953,37.0049,2445.4,2445.3,0.81768]
[1751457630064,37.82258,2445.4,2445.3,0.81768]
[1751457631666,37.0049,2445.4,2445.3,0.81768]
[1751457631866,37.0049,2445.4,2445.3,3.1716345]
[1751457632871,37.82258,2445.4,2445.3,3.1716345]
[1751457633072,37.0049,2445.4,2445.3,3.1716345]
[1751457634078,37.82258,2445.4,2445.3,3.1716345]
[1751457635569,0.81778,2445.2,2445.1,0.81772]
[1751457635875,25.61478,2445.2,2445.1,0.81772]
[1751457636576,25.61474,2445.2,2445.1,0.81772]
[1751457637279,24.797,2445.2,2445.1,0.81772]
[1751457637674,25.61474,2445.2,2445.1,0.81772]
[1751457638478,4.08702,2446.3,2445.2,2.04436]
[1751457638673,0.81771,2445.4,2445.3,3.0854545]
[1751457638874,25.61371,2445.4,2445.3,3.0854545]
[1751457639379,25.61371,2445.4,2445.3,3.9031145]
[1751457641980,37.14271,2445.4,2445.3,3.9031145]
[1751457642482,0.81781,2445.1,2445.0,0.81778]
[1751457642677,24.795,2445.1,2445.0,0.81778]
[1751457642878,0.7079,2445.3,2445.1,0.81774]
[1751457643082,36.324,2445.2,2445.1,0.81778]
[1751457643281,36.324,2445.2,2445.1,3.1717345]
[1751457644484,36.324,2445.2,2445.1,4.5612345]
[1751457653488,37.14174,2445.2,2445.1,4.5612345]
[1751457653692,36.324,2445.2,2445.1,4.5612345]
[1751457653986,37.14174,2445.2,2445.1,4.5612345]
[1751457654187,37.14174,2445.2,2445.1,0.81778]
[1751457654380,37.86964,2445.2,2445.1,0.81778]
[1751457654889,0.81784,2444.9,2444.8,40.80613434]
[1751457655186,25.60884,2444.9,2444.8,0.00613434]
[1751457655687,0.81798,2444.5,2444.4,0.81799]
[1751457655986,25.60898,2444.5,2444.4,0.81799]
[1751457657388,25.60898,2444.5,2444.4,1.49989]
[1751457657990,24.791,2444.5,2444.4,1.49989]
[1751457658687,24.791,2444.5,2444.4,2.85499]
[1751457658984,25.60898,2444.5,2444.4,2.85499]
[1751457659291,25.60898,2444.5,2444.4,1.49989]
[1751457663796,25.60898,2444.5,2444.4,0.6819]
[1751457664005,0.81805,2444.3,2444.2,0.00613434]
[1751457664191,25.61105,2444.3,2444.2,0.00613434]
[1751457664696,26.31025,2444.3,2444.2,0.82421434]
[1751457664895,26.31025,2444.3,2444.2,3.17816884]
[1751457665594,25.4922,2444.3,2444.2,3.17816884]
[1751457665788,26.31024,2444.3,2444.2,3.17816884]
[1751457666598,25.4922,2444.3,2444.2,3.17816884]
[1751457666899,26.31024,2444.3,2444.2,3.17816884]
[1751457667097,25.4922,2444.3,2444.2,3.17816884]
[1751457667298,26.31024,2444.3,2444.2,3.17816884]
[1751457667499,25.4922,2444.3,2444.2,3.17816884]
[1751457668202,26.31024,2444.3,2444.2,3.17816884]
[1751457668600,24.793,2444.3,2444.2,3.17816884]
[1751457669201,1.482,2444.5,2444.4,0.81801]
[1751457669502,26.277,2444.5,2444.4,3.1719645]
[1751457670202,25.459,2444.5,2444.4,3.1719645]
[1751457670400,26.27698,2444.5,2444.4,3.1719645]
[1751457670603,0.664,2444.5,2444.4,3.1719645]
[1751457670802,0.7287,2444.7,2444.6,0.81794]
[1751457671002,1.3927,2444.7,2444.6,3.1718945]
[1751457671403,2.21061,2444.7,2444.6,3.1718945]
[1751457671604,2.21061,2444.7,2444.5,0.6903]
[1751457671605,0.81794,2444.6,2444.5,1.50826]
[1751457671801,0.81794,2444.6,2444.5,0.81796]
[1751457672404,2.21064,2444.7,2444.6,0.81794]
[1751457673003,0.81797,2444.6,2444.5,0.81795]
[1751457673404,2.21063,2444.7,2444.6,0.81794]
[1751457673603,2.21063,2444.7,2444.6,3.1718945]
[1751457674606,2.21063,2444.7,2444.6,0.81794]
[1751457674803,2.21063,2444.7,2444.6,3.1718945]
[1751457676402,2.21063,2444.7,2444.6,0.81794]
[1751457678510,1.3927,2444.7,2444.6,0.81794]
[1751457678708,0.664,2444.7,2444.6,0.81794]
[1751457678908,0.664,2444.7,2444.6,1.54504]
[1751457680608,0.664,2444.7,2444.6,2.96744]
[1751457680812,1.48191,2444.7,2444.6,2.96744]
[1751457685613,0.81791,2444.7,2444.6,2.96744]
[1751457686115,59.5731,2444.9,2444.6,2.96744]
[1751457686317,37.12991,2444.8,2444.7,0.81791]
[1751457686523,37.12991,2444.8,2444.7,3.1718645]
[1751457686723,36.312,2444.8,2444.7,4.6301645]
[1751457687123,11.522,2444.8,2444.7,4.6301645]
[1751457687322,36.311,2444.8,2444.7,4.6301645]
[1751457687925,58.88,2444.9,2444.7,4.6301645]
[1751457687926,58.88,2444.9,2444.8,0.81788]
[1751457688126,84.48684,2444.9,2444.8,2.22428]
[1751457688528,58.88,2444.9,2444.8,2.22428]
[1751457688727,84.48684,2444.9,2444.8,2.22428]
[1751457691430,0.81788,2444.8,2444.6,0.7271]
[1751457691630,1.48578,2444.8,2444.7,0.8179]
[1751457691835,2.71263,2444.8,2444.3,4.17482]
[1751457692034,0.81798,2444.5,2444.4,1.51776]
[1751457692235,0.81798,2444.5,2444.3,3.7647545]
[1751457692236,0.81804,2444.3,2444.2,0.82419434]
[1751457692436,25.60504,2444.3,2444.2,0.82419434]
[1751457693735,24.787,2444.3,2444.2,0.82419434]
[1751457694236,24.787,2444.3,2444.2,2.28239434]
[1751457694736,24.787,2444.3,2444.2,2.28241434]
[1751457694936,13.04546,2444.6,2444.5,0.81798]
[1751457695135,37.83246,2444.6,2444.5,3.1719345]
[1751457695433,37.83244,2444.6,2444.5,0.81798]
[1751457695738,37.83244,2444.6,2444.5,3.1719345]
[1751457699131,0.81798,2444.5,2444.4,0.81799]
[1751457699339,0.81801,2444.4,2444.3,1.48392]
[1751457699636,0.81801,2444.4,2444.3,0.81802]
[1751457699835,0.81804,2444.3,2444.2,3.17813884]
[1751457700033,1.53204,2444.3,2444.2,3.17813884]
[1751457702135,0.714,2444.3,2444.2,3.17813884]
[1751457702335,1.5493,2444.5,2444.4,0.81801]
[1751457702534,1.5493,2444.5,2444.4,3.1719645]
[1751457706339,0.7313,2444.5,2444.4,3.1719645]
[1751457706842,1.54928,2444.5,2444.4,3.1719645]
[1751457709234,0.7313,2444.5,2444.4,3.1719645]
[1751457711041,37.12797,2444.6,2444.5,0.81797]
[1751457711243,37.12797,2444.6,2444.5,1.54577]
[1751457712843,36.31,2444.6,2444.5,1.54577]
[1751457713244,36.31,2444.6,2444.5,2.99277]
[1751457714740,11.522,2444.6,2444.5,2.99277]
[1751457718450,26.32201,2444.7,2444.6,0.81794]
[1751457718748,26.32201,2444.7,2444.6,3.1718945]
[1751457719350,26.32101,2444.7,2444.6,3.1718945]
[1751457722352,25.5031,2444.7,2444.6,3.1718945]
[1751457722554,25.5006,2444.8,2444.7,0.81791]
[1751457723752,0.7166,2444.8,2444.7,0.81791]
[1751457723953,25.5006,2444.8,2444.7,0.81791]
[1751457725357,26.31848,2444.8,2444.7,0.81791]
[1751457725950,25.5006,2444.8,2444.7,0.81791]
[1751457726258,26.31848,2444.8,2444.7,0.81791]
[1751457726758,25.5006,2444.8,2444.7,0.81791]
[1751457727960,26.31848,2444.8,2444.7,0.81791]
[1751457728154,25.5006,2444.8,2444.7,0.81791]
[1751457728961,12.2304,2444.9,2444.8,0.81788]
[1751457729161,37.0124,2444.9,2444.8,3.1718345]
[1751457729461,37.83024,2444.9,2444.8,3.1718345]
[1751457731262,1.52824,2444.9,2444.8,3.1718345]
[1751457731561,26.31024,2444.9,2444.8,3.1718345]
[1751457732058,1.52824,2444.9,2444.8,3.1718345]
[1751457732261,26.30924,2444.9,2444.8,3.1718345]
[1751457733758,1.52824,2444.9,2444.8,3.1718345]
[1751457733963,26.30824,2444.9,2444.8,3.1718345]
[1751457740467,26.30824,2444.9,2444.8,0.81788]
[1751457758682,26.30824,2444.9,2444.8,1.52028]
[1751457759785,11.519,2445.0,2444.9,0.81785]
[1751457759980,11.52213434,2445.1,2445.0,0.81781]
[1751457760182,0.00613434,2445.1,2445.0,2.17891]
[1751457760375,11.516,2445.5,2445.4,0.81768]
[1751457760677,37.67295681,2445.5,2445.4,3.1716345]
[1751457760877,1.38595681,2445.5,2445.4,41.61768]
[1751457761078,1.38595681,2445.5,2445.4,43.9716345]
[1751457761379,1.38595681,2445.5,2445.4,46.0235345]
[1751457761775,0.7267,2445.9,2445.8,0.81755]
[1751457761981,25.4967,2445.9,2445.8,0.81755]
[1751457762178,0.7267,2445.9,2445.8,0.81755]
[1751457762380,25.4967,2445.9,2445.8,1.50835]
[1751457762582,12.33249,2446.0,2445.9,0.81751]
[1751457762781,37.10249,2446.0,2445.9,3.1714645]
[1751457767091,37.09749,2446.0,2445.9,3.1714645]
[1751457768192,37.09749,2446.0,2445.9,2.3539545]
[1751457768688,37.09749,2446.0,2445.9,3.1714645]
[1751457769391,37.09749,2446.0,2445.9,2.3539545]
[1751457769892,37.09749,2446.0,2445.9,3.1714645]
[1751457770391,37.09749,2446.0,2445.9,2.3539545]
[1751457771393,37.09749,2446.0,2445.9,3.1714645]
[1751457771991,12.33149,2446.0,2445.9,3.1714645]
[1751457772291,37.09249,2446.0,2445.9,3.1714645]
[1751457772692,37.09249,2446.0,2445.9,2.3539545]
[1751457773797,37.09249,2446.0,2445.9,3.1714645]
[1751457774492,37.09249,2446.0,2445.9,2.3539545]
[1751457775398,37.09249,2446.0,2445.9,3.1714645]
[1751457779400,12.33149,2446.0,2445.9,3.1714645]
[1751457779700,37.08849,2446.0,2445.9,3.1714645]
[1751457781703,0.81751,2445.9,2445.8,2.86944]
[1751457785301,0.81751,2445.9,2445.8,0.6908]
[1751457785606,2.04387,2445.8,2445.1,2.3539545]
[1751457785806,0.81775,2445.3,2445.2,0.81772]
[1751457786007,25.57175,2445.3,2445.2,0.81772]
[1751457786205,24.57175,2445.3,2445.2,0.81772]
[1751457787106,24.57175,2445.3,2445.1,2.3539545]
[1751457787305,0.81784,2445.0,2444.8,2.3539545]
[1751457787606,25.57081,2445.0,2444.9,41.6178]
[1751457787807,25.57081,2445.0,2444.9,43.9717545]
[1751457788806,24.753,2445.0,2444.9,43.9717545]
[1751457789006,1.51675,2445.2,2445.1,0.81778]
[1751457789204,26.27175,2445.2,2445.1,3.1717345]
[1751457789512,25.454,2445.2,2445.1,3.1717345]
[1751457790211,26.27175,2445.2,2445.1,3.1717345]
[1751457790513,0.699,2445.2,2445.1,3.1717345]
[1751457790815,25.454,2445.2,2445.1,3.1717345]
[1751457791109,26.27175,2445.2,2445.1,3.1717345]
[1751457796514,24.755,2445.2,2445.1,3.1717345]
[1751457796709,5.902,2445.5,2445.2,0.81775]
[1751457796919,0.7076,2445.7,2445.6,0.81756]
[1751457797112,0.81755,2445.9,2445.8,0.81752]
[1751457797315,25.57255,2445.9,2445.8,3.1714745]
[1751457800219,0.81755,2445.9,2445.8,3.1714745]
[1751457800420,25.57255,2445.9,2445.8,3.1714745]
[1751457808028,24.755,2445.9,2445.5,0.7001]
[1751457808228,0.8177,2445.5,2445.4,0.81765]
[1751457808428,25.5667,2445.5,2445.4,0.81765]
[1751457808830,25.5667,2445.5,2445.4,3.1716045]
[1751457810033,25.5667,2445.5,2445.4,2.3539545]
[1751457811436,25.5667,2445.5,2445.4,3.1716345]
[1751457813131,37.0707,2445.5,2445.4,3.1716345]
[1751457813335,0.81771,2445.3,2445.2,0.81774]
[1751457813536,0.81775,2445.2,2445.1,3.1717145]
[1751457814737,1.4899,2445.4,2445.3,0.81771]
[1751457814938,26.2379,2445.4,2445.3,3.1716645]
[1751457815334,26.2379,2445.4,2445.3,3.8969645]
[1751457816437,26.2379,2445.4,2445.3,3.0792545]
[1751457816937,26.2379,2445.4,2445.3,3.8969645]
[1751457817338,24.748,2445.4,2445.3,3.8969645]
[1751457818736,11.504,2445.5,2445.4,0.81768]
[1751457818939,36.253,2445.5,2445.4,2.19548]
[1751457819737,7.2801,2445.9,2445.4,2.19548]
[1751457819738,7.2801,2445.9,2445.5,2.04406]
[1751457819938,0.81758,2445.8,2445.7,2.3539545]
[1751457820138,37.06958,2445.8,2445.7,2.3539545]
[1751457820440,37.06958,2445.8,2445.7,3.0316545]
[1751457821436,37.06958,2445.8,2445.7,3.8492045]
[1751457821637,12.32158,2445.8,2445.7,3.8492045]
[1751457821835,12.32155,2445.8,2445.7,3.8492045]
[1751457822039,36.251,2445.8,2445.7,3.8492045]
[1751457823836,2.19564,2445.9,2445.7,3.0316545]
[1751457824044,0.81754,2445.9,2445.8,0.81755]
[1751457824243,25.56454,2445.9,2445.8,2.19885]
[1751457824943,12.3215,2446.0,2445.9,0.81751]
[1751457825143,36.25,2446.0,2445.9,3.1714645]
[1751457825543,37.06748,2446.0,2445.9,3.1714645]
[1751457828853,37.06748,2446.0,2445.9,2.3539545]
[1751457829646,37.06748,2446.0,2445.9,3.1714645]
[1751457831244,37.06748,2446.0,2445.9,2.3539545]
[1751457831452,0.81751,2445.9,2445.8,2.3539545]
[1751457831643,0.81751,2445.9,2445.8,3.1715045]
[1751457832246,0.81761,2445.6,2445.5,2.17091]
[1751457832446,25.56061,2445.6,2445.5,2.17091]
[1751457836151,25.56061,2445.6,2445.5,1.3533]
[1751457836448,0.81768,2445.4,2445.3,3.1716445]
[1751457841456,0.81768,2445.4,2445.3,4.6153445]
[1751457843864,0.81768,2445.4,2445.3,3.1716445]
[1751457846665,0.81771,2445.3,2445.2,0.6819]
[1751457846862,0.81771,2445.3,2445.2,3.0358545]
[1751457847662,0.81771,2445.3,2445.2,2.3539545]
[1751457847864,2.04426,2445.4,2445.0,1.53338]
[1751457848161,0.81781,2445.0,2444.9,40.8]
[1751457848363,0.81781,2445.0,2444.9,0.81783]
[1751457848766,0.81781,2445.0,2444.9,41.61783]
[1751457849166,0.81785,2444.9,2444.8,1.50566]
[1751457849367,0.81785,2444.9,2444.8,3.8596145]
[1751457849567,2.77048,2445.1,2444.8,44.6596145]
[1751457849768,0.81785,2444.9,2444.8,44.6596145]
[1751457851264,0.81783,2445.1,2445.0,0.81779]
[1751457851464,0.81783,2445.1,2445.0,3.1717445]
[1751457852368,0.81778,2445.2,2445.1,0.81775]
[1751457852670,0.81778,2445.2,2445.1,3.8802045]
[1751457853162,2.0445,2445.1,2444.8,40.8]
[1751457853465,0.81785,2444.9,2444.8,43.9718045]
[1751457854765,0.81784,2445.0,2444.9,0.81781]
[1751457856564,0.81785,2444.9,2444.8,41.61785]
[1751457858267,0.81785,2444.9,2444.8,40.8]
[1751457858467,0.81785,2444.9,2444.8,41.61788]
[1751457862171,0.81785,2444.9,2444.8,43.06118]
[1751457862372,2.04459,2445.0,2444.6,1.4098]
[1751457862567,0.6842,2444.8,2444.7,0.81791]
[1751457862772,4.5749345,2445.2,2444.7,0.81791]
[1751457862773,0.81778,2445.2,2444.7,0.81791]
[1751457862971,0.81787,2445.0,2444.9,0.81784]
[1751457863273,0.81787,2445.0,2444.9,3.1717945]
[1751457864372,0.81787,2445.0,2444.9,2.3539545]
[1751457864775,0.81787,2445.0,2444.9,3.1718045]
[1751457864975,0.81787,2445.0,2444.9,2.3539545]
[1751457865768,0.81787,2445.0,2444.9,3.1718045]
[1751457869478,1.50201,2445.1,2445.0,0.81781]
[1751457869674,37.06079,2445.1,2445.0,0.81781]
[1751457869976,59.68973,2445.3,2445.2,0.81775]
[1751457870176,59.68973,2445.3,2445.2,3.1717045]
[1751457874379,59.68973,2445.3,2445.2,2.3539545]
[1751457874581,59.68973,2445.3,2445.2,3.1717045]
[1751457874780,59.68973,2445.3,2445.2,4.6101045]
[1751457881083,58.872,2445.3,2445.2,4.6101045]
[1751457881285,12.31769,2445.4,2445.3,0.81771]
[1751457881585,37.05869,2445.4,2445.3,2.24871]
[1751457881776,0.81775,2445.2,2445.1,2.3539545]
[1751457881981,0.81775,2445.2,2445.1,0.7068]
[1751457882185,25.55875,2445.2,2445.1,1.52458]
[1751457882683,25.55875,2445.2,2445.1,2.85178]
[1751457882883,2.04404,2445.6,2445.2,0.81775]
[1751457883085,37.05769,2445.5,2445.4,3.1716345]
[1751457885494,36.24,2445.5,2445.4,3.1716345]
[1751457885887,5.902,2445.9,2445.6,0.81761]
[1751457886084,12.1823,2445.9,2445.8,3.1714645]
[1751457886289,39.08609413,2445.9,2445.8,3.1714645]
[1751457887491,38.26858413,2445.9,2445.8,3.1714645]
[1751457888193,39.08609413,2445.9,2445.8,3.1714645]
[1751457888793,36.9223,2445.9,2445.8,3.1714645]
[1751457889393,12.1823,2445.9,2445.8,3.1714645]
[1751457889796,36.9193,2445.9,2445.8,3.1714645]
[1751457890490,37.73681,2445.9,2445.8,0.81751]
[1751457890694,36.9193,2445.9,2445.8,0.81751]
[1751457891595,36.9193,2445.9,2445.8,1.47841]
[1751457894399,37.73681,2445.9,2445.8,1.47841]